Cogmind - Beta 13 X1 @@@ ROGUE MODE // 2023.11.30 @ 15:44:46 Player: alice_fexa Result: Escaped! Performance ------------- Evolutions (9) 4500 Regions Visited (14) 2800 Robots Destroyed (98) 490 Value Destroyed (3953) 3953 Prototype IDs (46) 920 Alien Tech Used (0) 0 Bonus (8112) 8112 TOTAL SCORE: 20775 Bonus ------- Follower Combat Kills 40 Met Warlord at Base 500 MAIN.C Attacked Warlord 500 Warlord Defense Kills 164 Met Warlord at Research 2000 Invited to Help at Command 2000 Win 3000 Friendly Fire -92 Cogmind --------- Core Integrity 1600/1600 Matter 300/300 Energy 695/700 System Corruption 1% Temperature Cool (16) Movement Hovering (44) Location To Epsilon Eridani Parts ------- > --- POWER (2) -------- Vortex Chain Reactor > --- PROPULSION (7) --- Improved Antigrav System Cooled Antigrav System Combat Antigrav System Combat Linear Gravjet Combat Linear Gravjet Combat Linear Gravjet > --- UTILITY (13) ----- Structural Scanner Spectral Analyzer Advanced Signal Interpreter Advanced Melee Analysis Suite Advanced Melee Analysis Suite Experimental Reaction Control System Improved Medium Armor Plating Improved Medium Armor Plating Centrium Light Armor Plating Centrium Light Armor Plating Advanced Hacking Suite Experimental Hacking Suite > --- WEAPON (3) ------- Plasma Lance Plasma Lance Plasma Lance > --- INVENTORY (5) ---- Quantum Reactor Improved Antigrav System Long-range Sensor Array Micro-nuke Launcher Power Maul Peak State ------------ > --- POWER ------------ Vortex Chain Reactor > --- PROPULSION ------- Cooled Antigrav System Cooled Antigrav System Combat Antigrav System Combat Linear Gravjet Combat Linear Gravjet Combat Linear Gravjet > --- UTILITY ---------- Advanced Energy Well Spectral Analyzer Long-range Sensor Array Advanced Signal Interpreter Advanced Melee Analysis Suite Advanced Melee Analysis Suite Experimental Core Analyzer Experimental Reaction Control System Improved Medium Armor Plating Centrium Light Armor Plating Centrium Light Armor Plating Centrium Light Armor Plating Ghost Barrier > --- WEAPON ----------- Plasma Lance Plasma Lance Plasma Lance > --- INVENTORY -------- Quantum Reactor Advanced Sensor Array Heavy Dispersion Rifle Micro-nuke Launcher Power Maul [Rating: 199] Favorites ----------- Power Ion Engine Engine Ion Engine Power Core Micro Fission Core Reactor Vortex Chain Reactor Propulsion Cooled Antigrav System Treads Light Treads Leg Cargo Legs Hover Unit Cooled Antigrav System Flight Unit Cooled Impulse Thruster Utility Scrap Shield Device Advanced Cooling System Storage Small Storage Unit Processor Spectral Analyzer Hackware Hacking Suite Protection Scrap Shield Weapon Plasma Lance Energy Gun Force Rifle Energy Cannon Subdweller Beam Cannon Ballistic Gun Autogun Ballistic Cannon Mini Assault Cannon Launcher Subdweller Shrapnel Launcher Special Weapon Remote Datajack Impact Weapon Power Maul Piercing Weapon Plasma Lance Build | -11 -10 -10 -8 -7 -6 -5 -4 -4 -4 -4 -3 -3 -2 -1 ------- Run | Jun Mat Sub Mat Fac Fac Fac Fac Upp Upp War Pro Res Res Acc Slots Evolved 18 | . . . 4 2 2 2 2 . . . . 2 2 2 Power 1 | . . . . . . 1 . . . . . . . . Propulsion 5 | . . . 2 . . 1 . . . . . 1 . 1 Utility 11 | . . . 2 2 2 . 2 . . . . 1 1 1 Weapon 1 | . . . . . . . . . . . . . 1 . Parts Attached 193 | 7 9 14 9 10 12 10 2 9 2 44 3 4 47 11 Power 15 | 1 1 1 . 3 1 1 1 . . 2 . 1 3 . Engine 8 | 1 1 1 . 3 1 1 . . . . . . . . Core 3 | . . . . . . . . . . 2 . . 1 . Reactor 4 | . . . . . . . 1 . . . . 1 2 . Propulsion 36 | 2 . 2 2 3 1 4 . . 1 12 . 2 5 2 Treads 4 | 2 . 1 1 . . . . . . . . . . . Leg 11 | . . 1 1 3 1 4 . . 1 . . . . . Wheel . | . . . . . . . . . . . . . . . Hover 20 | . . . . . . . . . . 11 . 2 5 2 Flight 1 | . . . . . . . . . . 1 . . . . Utility 80 | 2 2 2 6 3 6 3 1 3 . 22 1 1 21 7 Device 30 | 1 1 . 2 2 4 2 . 1 . 9 1 1 4 2 Storage 5 | 1 1 . . 1 . . . . . . . . 2 . Processor 16 | . . . 1 . . 1 . . . 5 . . 9 . Hackware 4 | . . . 1 . . . . . . 1 . . . 2 Protection 25 | . . 2 2 . 2 . 1 2 . 7 . . 6 3 Artifact . | . . . . . . . . . . . . . . . Weapon 62 | 2 6 9 1 1 4 2 . 6 1 8 2 . 18 2 Energy Gun 14 | . . . . . . 2 . 4 . 1 1 . 6 . Energy Cannon 9 | . . 4 . . . . . . . 1 1 . 2 1 Ballistic Gun 13 | 2 4 3 1 1 2 . . . . . . . . . Ballistic Cannon 1 | . . . . . 1 . . . . . . . . . Launcher 9 | . 2 2 . . . . . 2 1 1 . . 1 . Special Weapon 1 | . . . . . 1 . . . . . . . . . Impact Weapon 7 | . . . . . . . . . . 4 . . 3 . Slashing Weapon . | . . . . . . . . . . . . . . . Piercing Weapon 8 | . . . . . . . . . . 1 . . 6 1 Special Melee Weapon . | . . . . . . . . . . . . . . . Unidentified Prototypes 25 | . . . . 1 2 1 . . . 10 . 1 9 1 Corrupted Parts 2 | . . . . . . . . . . 1 . . 1 . System Corruption 2 | . . . . . . . . . . 1 . . 1 . Parts Lost 21 | . . 1 . . . 1 . 3 12 . . . 1 3 Power 2 | . . . . . . . . 1 1 . . . . . Propulsion 6 | . . . . . . . . 1 4 . . . . 1 Utility 10 | . . 1 . . . 1 . 1 4 . . . 1 2 Weapon 3 | . . . . . . . . . 3 . . . . . Highest Loss Streak 12 | . . 1 . . . 1 . 3 12 . . . 1 2 To Critical Strikes . | . . . . . . . . . . . . . . . Average Slot Usage (%) 79 | . 100 67 65 76 89 93 89 82 66 73 87 88 92 94 Engine 6 | . 14 12 7 7 6 11 7 5 4 3 . . . . Core 1 | . . . . . . . . . . 5 10 6 . . Treads 4 | . 28 11 4 1 . . . . . . . . . . Leg 7 | . . 6 10 21 20 23 21 17 13 . . . . . Hover 8 | . . . . . . . . . . 19 26 27 26 26 Device 9 | . 14 . 1 7 22 16 15 12 9 13 10 18 13 11 Storage 2 | . 14 . . . 6 5 5 5 4 . . . 3 1 Processor 5 | . . . 6 7 6 5 5 5 4 6 5 4 15 19 Hackware 3 | . . . 7 7 6 5 5 5 4 3 5 4 4 4 Protection 11 | . . 11 8 7 6 11 15 17 16 12 20 14 11 15 Energy Gun 2 | . . . . . . 2 5 9 7 2 3 4 3 . Energy Cannon 2 | . . 8 . . . . . . . 1 3 4 1 . Ballistic Gun 5 | . 26 7 16 15 12 7 5 . . . . . . . Launcher 2 | . 1 8 . . . . . . . . 1 . . . Piercing Weapon 1 | . . . . . . . . . . . . . 3 11 Naked Turns 157 | . . . . . . . . . 43 114 . . . . Heaviest Build 77 | 12 22 39 33 41 46 58 74 77 67 68 68 64 75 71 Greatest Support 113 | 40 40 55 65 90 90 113 113 113 108 68 68 79 84 96 Greatest Overweight (x) . | . . . . . . . . . . . . . . . Average Overweight (x) . | . . . . . . . . . . . . . . . Largest Inventory Capacity 10 | 8 10 10 5 8 8 8 8 8 8 5 5 5 5 5 Average Capacity 5 | 7 9 5 5 5 8 8 8 8 7 5 5 5 5 5 Most Carried 10 | 2 10 10 5 6 8 8 8 8 8 5 5 5 5 5 Average Carried 5 | 1 7 4 4 5 6 7 7 7 7 4 4 5 4 4 Final Capacity 10 | 8 10 5 5 8 8 8 8 8 5 5 5 5 5 5 Final Carried 10 | 2 10 5 5 6 8 8 8 8 5 5 5 5 5 5 Class Distribution -------------------- 40% | Scavenger-Mutant 23% | Mutant 16% | Subdweller-Mutant 15% | Scavenger-Scout Dominant Class ---------------- Mutant | -10/Materials Subdweller-Mutant | -10/Subcaves Scavenger-Mutant | -8/Materials Scavenger-Mutant | -7/Factory Scavenger-Mutant | -6/Factory Scavenger-Mutant | -5/Factory Scavenger-Mutant | -4/Factory Scavenger-Mutant | -4/Upper Caves Scavenger-Mutant | -4/Upper Caves Scavenger-Mutant | -4/Warlord Scavenger-Mutant | -3/Proximity Caves Scavenger-Mutant | -3/Research Scavenger-Scout | -2/Research Scavenger-Scout | -1/Access Resources | -11 -10 -10 -8 -7 -6 -5 -4 -4 -4 -4 -3 -3 -2 -1 ----------- Run | Jun Mat Sub Mat Fac Fac Fac Fac Upp Upp War Pro Res Res Acc Matter Collected 3948 | 276 165 810 202 277 520 211 40 217 5 440 137 30 493 125 Remotely 268 | 142 126 . . . . . . . . . . . . . Salvage Created 4375 | 50 300 672 152 238 185 403 107 460 98 84 137 135 596 758 Parts 195 | 2 25 31 9 5 9 19 1 5 10 4 2 7 25 41 Haulers Intercepted 5 | . . . . . 1 . . . . . . . 2 2 Recyclers Shooed 2 | . . . . 1 . . 1 . . . . . . . Parts Field Recycled . | . . . . . . . . . . . . . . . Retrieved Matter . | . . . . . . . . . . . . . . . Parts Self-Destructed 28 | . . 6 . . . . . 2 20 . . . . . Prevented . | . . . . . . . . . . . . . . . Kills | -11 -10 -10 -8 -7 -6 -5 -4 -4 -4 -4 -3 -3 -2 -1 ------- Run | Jun Mat Sub Mat Fac Fac Fac Fac Upp Upp War Pro Res Res Acc Combat Hostiles Destroyed 75 | . 8 23 2 . 1 6 1 9 6 2 6 1 4 6 Melee 8 | . . . . . . . . . . . . . 2 6 Guns 20 | . 1 4 2 . 1 6 1 2 1 1 . . 1 . Cannons 7 | . . 5 . . . . . . . . 1 1 . . AOE 37 | . 7 14 . . . . . 6 5 . 5 . . . Classes Destroyed 19 | 1 4 1 1 . 1 2 1 3 . 1 . . 1 3 Worker 2 | . . . . . . . 1 . . . . . . 1 Builder 7 | . 2 . 2 . . . . . . . . 1 1 1 Hauler 5 | . . . . . 1 . . . . . . . 2 2 Recycler 5 | 1 1 . . 3 . . . . . . . . . . Mechanic 1 | . . . . . . . . . . . . . . 1 Operator 3 | . . . 1 . 1 . . . . . . . 1 . Drone 1 | . . . . . . . . . . . . . . 1 Watcher 4 | . 1 . . . . . . . . . . . 1 2 Swarmer 15 | . 3 . . . . . . 1 6 . 5 . . . Saboteur 1 | . . . . . . . . . . 1 . . . . Grunt 20 | . 5 . 2 . 1 4 1 4 . 1 1 . 1 . Duelist 1 | . . . . . . . . 1 . . . . . . Sentry 5 | . . . . . . . . 2 . . . 1 1 1 Specialist 1 | . . . . . . 1 . . . . . . . . Hunter 1 | . . . . . . . . 1 . . . . . . Programmer 4 | . . . . . . . . . . . . . . 4 Heavy 1 | . . . . . . 1 . . . . . . . . Striker 2 | . . . . . . . . . . . . . 2 . Subdweller 23 | . . 23 . . . . . . . . . . . . Best Kill Streak 8 | 1 4 8 3 2 1 3 1 7 5 1 5 1 1 2 Combat Bots Only 8 | . 4 8 2 . 1 3 1 7 5 1 5 1 1 2 Max Kills in Single Turn 5 | 1 2 2 1 1 1 1 1 1 5 1 4 1 1 1 Gunslinging . | . . . . . . . . . . . . . . . Exploded 5 | . 2 2 . . . . . 1 5 . 4 . . . Melee 1 | . . . . . . . . . . . . . 1 1 Uniques/NPCs Destroyed . | . . . . . . . . . . . . . . . Combat | -11 -10 -10 -8 -7 -6 -5 -4 -4 -4 -4 -3 -3 -2 -1 -------- Run | Jun Mat Sub Mat Fac Fac Fac Fac Upp Upp War Pro Res Res Acc Damage Taken 7169 | . 104 1119 113 334 58 508 74 1343 1540 206 372 156 353 889 Core 748 | . 7 141 16 14 . 46 . 66 328 68 8 . 54 . Absorbed by Shields 149 | . . . . 27 23 99 . . . . . . . . Redirected to Shielding 27 | . . . . . . . . . . . 13 . 14 . Ignored by Resistances 570 | . . . . . . . . 165 287 . 118 . . . Regen/Repaired (Parts) 31 | . . . . . . . . . . 31 . . . . Core Remaining (%) 88 | 100 . 40 97 98 100 95 . . . . 59 100 96 100 Volleys Fired 334 | 3 15 111 17 9 21 25 8 24 4 36 29 16 14 2 Largest 3 | 2 2 2 2 2 2 2 2 2 2 2 2 2 3 1 Hottest 268 | 40 46 120 53 53 61 109 108 156 156 165 165 165 268 120 Shots Fired 552 | 6 25 163 34 18 38 49 16 38 7 55 37 25 39 2 Gun 354 | 6 20 66 34 18 36 49 16 28 6 36 8 9 22 . Cannon 153 | . . 73 . . . . . . . 19 27 16 16 2 Launcher 43 | . 5 24 . . . . . 10 1 . 2 . 1 . Special 2 | . . . . . 2 . . . . . . . . . Kinetic 235 | 6 20 83 34 18 36 30 8 . . . . . . . Thermal 289 | . . 73 . . . 19 8 28 6 55 35 25 38 2 Explosive 26 | . 5 7 . . . . . 10 1 . 2 . 1 . Electromagnetic . | . . . . . . . . . . . . . . . Robot Hit Streak 18 | 2 15 18 7 4 9 12 4 10 4 10 6 6 9 . Robot Miss Streak 5 | 1 3 4 2 3 1 4 2 2 1 2 5 2 1 . Penetration Max . | . . . . . . . . . . . . . . . Secondary Targets 3 | . . 1 . . . 2 . . . . . . . . Max Gunslinging Chain 1 | . . 1 . . . 1 . . . . . . . . Shots Hit Robots 339 | 4 16 53 24 10 28 30 9 28 5 41 9 13 43 26 Core Hits 195 | 2 13 37 9 4 9 19 5 30 11 14 10 6 13 13 Critical Kills 1 | . . . . . . . . . . 1 . . . . Critical Parts Destroyed 6 | . . . . . 1 . . . . 1 1 . 3 . Critical Strikes 12 | . . . . . 1 1 . 1 . 2 1 . 6 . Burn 2 | . . . . . . 1 . 1 . . . . . . Meltdown 1 | . . . . . . . . . . 1 . . . . Destroy 5 | . . . . . 1 . . . . 1 1 . 2 . Smash 2 | . . . . . . . . . . . . . 2 . Impale 2 | . . . . . . . . . . . . . 2 . Melee Attacks 89 | . . . . . . . . . . 1 . . 32 56 Impact 9 | . . . . . . . . . . 1 . . 8 . Slashing . | . . . . . . . . . . . . . . . Piercing 80 | . . . . . . . . . . . . . 24 56 Sneak Attacks 6 | . . . . . . . . . . . . . 1 5 Combat Hostiles 1 | . . . . . . . . . . . . . 1 . Follow-up Attacks 9 | . . . . . . . . . . . . . 2 7 Damage Inflicted 13710 | 40 624 2602 408 239 581 644 213 1817 676 1168 803 355 1802 1738 Guns 4511 | 40 188 311 408 207 564 644 213 510 89 665 118 143 411 . Cannons 1577 | . . 493 . . . . . . . 503 95 212 274 . Explosions 4804 | . 436 1798 . . . . . 1307 587 . 590 . 86 . Melee 2769 | . . . . . . . . . . . . . 1031 1738 Ramming 49 | . . . . 32 17 . . . . . . . . . Kinetic 3732 | 40 188 1900 408 207 564 331 94 . . . . . . . Thermal 3945 | . . 493 . . . 313 119 510 89 1168 213 355 685 . Explosive 3215 | . 436 209 . . . . . 1307 587 . 590 . 86 . Electromagnetic . | . . . . . . . . . . . . . . . Impact 143 | . . . . . . . . . . . . . 143 . Slashing . | . . . . . . . . . . . . . . . Piercing 2626 | . . . . . . . . . . . . . 888 1738 Highest Corruption 5 | . . . . 2 . . . . . 1 1 5 1 1 Average Corruption 1 | . . . . 1 . . . . . 1 1 5 1 1 Corruption Purged . | . . . . . . . . . . . . . . . Corruption Blocked 37 | . . . . . . . . . . . . . 37 . Effects 10 | . . . . 1 . . . . . . 2 5 . 2 Message Errors 2 | . . . . 1 . . . . . . . 1 . . Matter Fused 3 | . . . . . . . . . . . 1 1 . 1 Heat Flow Errors 1 | . . . . . . . . . . . . 1 . . Energy Discharges 1 | . . . . . . . . . . . 1 . . . Data Loss (minor) 1 | . . . . . . . . . . . . . . 1 Data Loss (major) 1 | . . . . . . . . . . . . 1 . . Alerts 1 | . . . . . . . . . . . . 1 . . Overload Shots . | . . . . . . . . . . . . . . . Overflow Damage 338 | . . . . 17 . . . 20 . . 47 . 114 140 Projectiles . | . . . . . . . . . . . . . . . Explosions 67 | . . . . . . . . 20 . . 47 . . . Melee 271 | . . . . 17 . . . . . . . . 114 140 Knockbacks 2 | . . . . . 1 . . . . . . . 1 . Impact 2 | . . . . . 1 . . . . . . . 1 . Kinetic . | . . . . . . . . . . . . . . . Secondary . | . . . . . . . . . . . . . . . Self-Inflicted Damage 182 | . 31 70 . . . . . 34 . . 47 . . . Shots 8 | . 1 4 . . . . . 2 . . 1 . . . Rammed . | . . . . . . . . . . . . . . . Targets Rammed 3 | . . . . 2 1 . . . . . . . . . Kicked 3 | . . . . 2 1 . . . . . . . . . Crushed . | . . . . . . . . . . . . . . . Highest Temperature 269 | . 12 269 . 5 . 28 . 31 6 203 3 36 225 152 Average Temperature 26 | . 4 61 . 5 . 8 . 9 4 36 3 36 12 33 Received Heat Transfer 1518 | . 27 529 63 57 . 178 9 253 318 . 57 9 9 9 Effects 1 | . . 1 . . . . . . . . . . . . Energy Bleed 1 | . . 1 . . . . . . . . . . . . Siege Activations . | . . . . . . . . . . . . . . . Robots Corrupted . | . . . . . . . . . . . . . . . Combat Hostiles . | . . . . . . . . . . . . . . . Parts Fried . | . . . . . . . . . . . . . . . Impact Corruptions 2 | . . . . 1 . . . . . . . . 1 . Robots Melted 2 | . . . . . . . . 1 . 1 . . . . Combat Hostiles 2 | . . . . . . . . 1 . 1 . . . . Parts Melted 12 | . . 1 . . . 3 1 1 . 1 4 1 . . Heat Transferred 5522 | . . 666 . . . 555 185 888 148 1378 296 481 925 . Parts Sabotaged . | . . . . . . . . . . . . . . . Parts Stolen . | . . . . . . . . . . . . . . . Parts Stripped . | . . . . . . . . . . . . . . . Power Chain Reactions . | . . . . . . . . . . . . . . . Missiles Intercepted . | . . . . . . . . . . . . . . . Alert | -11 -10 -10 -8 -7 -6 -5 -4 -4 -4 -4 -3 -3 -2 -1 ------- Run | Jun Mat Sub Mat Fac Fac Fac Fac Upp Upp War Pro Res Res Acc Peak Influence 402 | 5 141 . 81 48 67 96 69 . . . . 257 286 402 Initial 158 | . 3 . . 36 22 32 44 . . . . 158 153 32 Average 82 | 1 44 . 43 19 30 36 45 . . . . 205 137 163 Maximum Alert Level 2 | . . . . . . . . . . . . 1 1 2 Low Security (%) 87 | 100 100 . 100 100 100 100 100 . . . . 52 75 63 Level 1 12 | . . . . . . . . . . . . 47 24 33 Level 2 . | . . . . . . . . . . . . . . 3 Level 3 . | . . . . . . . . . . . . . . . Level 4 . | . . . . . . . . . . . . . . . Level 5 . | . . . . . . . . . . . . . . . High Security . | . . . . . . . . . . . . . . . Max Security . | . . . . . . . . . . . . . . . Squads Dispatched 21 | . . . 3 1 4 5 . . 1 . . . 2 5 Investigation 3 | . . . . . . 1 . . . . . . . 2 Extermination 3 | . . . . 1 1 . . . . . . . . 1 Reinforcement 11 | . . . . . 3 4 . . . . . . 2 2 Assault 1 | . . . . . . . . . 1 . . . . . Garrison 3 | . . . 3 . . . . . . . . . . . Intercept . | . . . . . . . . . . . . . . . Searches Triggered . | . . . . . . . . . . . . . . . Construction Impeded . | . . . . . . . . . . . . . . . Haulers Reinforced 2 | . . . . . 1 . . . . . . . 1 . Active Scanning Responses . | . . . . . . . . . . . . . . . Cargo Convoy Interrupts . | . . . . . . . . . . . . . . . Stealth | -11 -10 -10 -8 -7 -6 -5 -4 -4 -4 -4 -3 -3 -2 -1 --------- Run | Jun Mat Sub Mat Fac Fac Fac Fac Upp Upp War Pro Res Res Acc Distress Signals 10 | . . . 1 1 . 2 . . . 1 . . 3 2 Communications Jammed . | . . . . . . . . . . . . . . . Distress Signals . | . . . . . . . . . . . . . . . Times Spotted 280 | . 10 24 7 14 15 26 13 10 18 73 13 3 35 19 Peak Tracking Total 20 | . 4 7 2 5 4 6 7 8 20 10 7 1 5 9 Tactical Retreats 18 | . . . . 1 . . . . 3 3 3 . 5 3 Traps | -11 -10 -10 -8 -7 -6 -5 -4 -4 -4 -4 -3 -3 -2 -1 ------- Run | Jun Mat Sub Mat Fac Fac Fac Fac Upp Upp War Pro Res Res Acc Traps Triggered 2 | . . . . 2 . . . . . . . . . . Indirectly . | . . . . . . . . . . . . . . . Trap Hack Attempts . | . . . . . . . . . . . . . . . Triggered . | . . . . . . . . . . . . . . . Disarmed . | . . . . . . . . . . . . . . . Reprogrammed . | . . . . . . . . . . . . . . . Reused . | . . . . . . . . . . . . . . . Traps Extracted . | . . . . . . . . . . . . . . . Installed . | . . . . . . . . . . . . . . . Triggered 23 | . . . . . . . . . . 23 . . . . Machines | -11 -10 -10 -8 -7 -6 -5 -4 -4 -4 -4 -3 -3 -2 -1 ---------- Run | Jun Mat Sub Mat Fac Fac Fac Fac Upp Upp War Pro Res Res Acc Machines Disabled 5 | . . 1 1 . 1 . . . . . . 1 . 1 Max in Single Turn 1 | . . 1 1 . 1 . . . . . . 1 . 1 Garrison Access 5 | . . . . . 1 . . . . . . 1 2 1 Energy Cycler 1 | . . . . . . . . . . . . . . 1 Machines Repaired . | . . . . . . . . . . . . . . . Machines Sabotaged . | . . . . . . . . . . . . . . . Overloaded Fab Kills . | . . . . . . . . . . . . . . . Hacking | -11 -10 -10 -8 -7 -6 -5 -4 -4 -4 -4 -3 -3 -2 -1 --------- Run | Jun Mat Sub Mat Fac Fac Fac Fac Upp Upp War Pro Res Res Acc Machines Accessed 22 | . 2 1 . 2 2 1 . . . 1 . 3 1 9 Terminals 17 | . 2 . . 2 1 1 . . . . . 2 1 8 Fabricators . | . . . . . . . . . . . . . . . Repair Stations . | . . . . . . . . . . . . . . . Recycling Units . | . . . . . . . . . . . . . . . Scanalyzers . | . . . . . . . . . . . . . . . Garrison Access 3 | . . . . . 1 . . . . . . 1 . 1 Total Hacks 61 | . 5 9 . 9 5 2 . . . 1 . 3 5 22 Successful 32 | . 4 9 . 5 4 . . . . 1 . 1 2 6 Failed 29 | . 1 . . 4 1 2 . . . . . 2 3 16 Catastrophic 11 | . . . . 2 . . . . . . . 2 1 6 Database Lockouts . | . . . . . . . . . . . . . . . Manual 40 | . 5 . . 9 2 . . . . . . 2 5 17 Terminals 48 | . 5 . . 9 4 2 . . . . . 2 5 21 Fabricators . | . . . . . . . . . . . . . . . Repair Stations . | . . . . . . . . . . . . . . . Recycling Units . | . . . . . . . . . . . . . . . Scanalyzers . | . . . . . . . . . . . . . . . Garrison Access 3 | . . . . . 1 . . . . . . 1 . 1 Terminal Hacks 23 | . 2 9 . 3 3 . . . . 1 . . 1 4 Record 8 | . . 8 . . . . . . . . . . . . Prototype ID Bank 1 | . . . . . 1 . . . . . . . . . Open Door 1 | . . . . . . . . . . 1 . . . . Level Access Points 2 | . . . . . . . . . . . . . 1 1 Terminal Index 2 | . . . . 1 . . . . . . . . . 1 Alert Level 1 | . . . . . . . . . . . . . . 1 Unreport Threat 2 | . 1 . . 1 . . . . . . . . . . Locate Traps 2 | . 1 . . . 1 . . . . . . . . . Zone Layout 3 | . . . . 1 1 . . . . . . . . 1 Derelict Proto ID Bank 1 | . . 1 . . . . . . . . . . . . Fabricator Hacks . | . . . . . . . . . . . . . . . Repair Station Hacks . | . . . . . . . . . . . . . . . Recycling Unit Hacks . | . . . . . . . . . . . . . . . Scanalyzer . | . . . . . . . . . . . . . . . Garrison Access Hacks 3 | . . . . . 1 . . . . . . 1 . 1 Seal Access 3 | . . . . . 1 . . . . . . 1 . 1 Unauthorized Hacks 6 | . 2 . . 2 . . . . . . . . 1 1 Terminals 6 | . 2 . . 2 . . . . . . . . 1 1 Assimilate 1 | . . . . . . . . . . . . . 1 . Botnet 5 | . 2 . . 2 . . . . . . . . . 1 Fabricators . | . . . . . . . . . . . . . . . Repair Stations . | . . . . . . . . . . . . . . . Recycling Units . | . . . . . . . . . . . . . . . Scanalyzers . | . . . . . . . . . . . . . . . Garrison Access . | . . . . . . . . . . . . . . . Data Cores Recovered 1 | . . . 1 . . . . . . . . . . . Used . | . . . . . . . . . . . . . . . Hacking Detections 16 | . 2 . . 2 1 1 . . . . . 2 1 7 Full Trace Events 2 | . . . . . . . . . . . . . . 2 Feedback Events . | . . . . . . . . . . . . . . . Feedback Blocked . | . . . . . . . . . . . . . . . Robot Schematics Acquired . | . . . . . . . . . . . . . . . Robots Built . | . . . . . . . . . . . . . . . Authchips . | . . . . . . . . . . . . . . . Time . | . . . . . . . . . . . . . . . Total Robot Build Rating . | . . . . . . . . . . . . . . . Part Schematics Acquired . | . . . . . . . . . . . . . . . Parts Built . | . . . . . . . . . . . . . . . Authchips . | . . . . . . . . . . . . . . . Time . | . . . . . . . . . . . . . . . Total Part Build Rating . | . . . . . . . . . . . . . . . Parts Repaired . | . . . . . . . . . . . . . . . Time . | . . . . . . . . . . . . . . . Parts Recycled . | . . . . . . . . . . . . . . . Recycled Matter . | . . . . . . . . . . . . . . . Retrieved Matter . | . . . . . . . . . . . . . . . Retrieved Components . | . . . . . . . . . . . . . . . Parts Scanalyzed . | . . . . . . . . . . . . . . . Part Schematics Acquired . | . . . . . . . . . . . . . . . Parts Damaged . | . . . . . . . . . . . . . . . Bothacking | -11 -10 -10 -8 -7 -6 -5 -4 -4 -4 -4 -3 -3 -2 -1 ------------ Run | Jun Mat Sub Mat Fac Fac Fac Fac Upp Upp War Pro Res Res Acc Used RIF Installer . | . . . . . . . . . . . . . . . Robots Hacked 1 | . . . . . 1 . . . . . . . . . Non-combat . | . . . . . . . . . . . . . . . Combat 1 | . . . . . 1 . . . . . . . . . Robot Hacks Applied 1 | . . . . . 1 . . . . . . . . . parse_system 1 | . . . . . 1 . . . . . . . . . Relay Couplers Released 4 | . . . . . . . . . . . . . 4 . Machine Destruction 1 | . . . . . . . . . . . . . 1 . Programmers 3 | . . . . . . . . . . . . . 3 . Fabnet Peak Effective % . | . . . . . . . . . . . . . . . Robots Rewired 4 | . . . . . . . . 2 2 . . . . . Allies Hacked . | . . . . . . . . . . . . . . . Hacks Repelled . | . . . . . . . . . . . . . . . Allies | -11 -10 -10 -8 -7 -6 -5 -4 -4 -4 -4 -3 -3 -2 -1 -------- Run | Jun Mat Sub Mat Fac Fac Fac Fac Upp Upp War Pro Res Res Acc Total Allies 5 | . . . . . . . . 2 2 . . . 1 . Largest Group 2 | . . . . . . . . 2 2 . . . 1 . Highest-Rated Group 95 | . . . . . . . . 95 95 . . . 10 . Highest-Rated Ally 49 | . . . . . . . . 48 49 . . . 10 . Total Orders 1 | . . . . . . . . . . 1 . . . . RETURN 1 | . . . . . . . . . . 1 . . . . Ally Attacks 8 | . . . . . . . . . 8 . . . . . Total Damage 282 | . . . . . . . . . 282 . . . . . Kills 2 | . . . . . . . . . 2 . . . . . Allies Corrupted . | . . . . . . . . . . . . . . . Allies Melted 1 | . . . . . . . . . . 1 . . . . Intel | -11 -10 -10 -8 -7 -6 -5 -4 -4 -4 -4 -3 -3 -2 -1 ------- Run | Jun Mat Sub Mat Fac Fac Fac Fac Upp Upp War Pro Res Res Acc Robot Analysis Total . | . . . . . . . . . . . . . . . Derelict Logs Recovered 2 | . . . . . . . . 1 1 . . . . . Drone Launches 1 | . . . . . . . . . . 1 . . . . Drone Recoveries 1 | . . . . . . . . . . 1 . . . . Exploration | -11 -10 -10 -8 -7 -6 -5 -4 -4 -4 -4 -3 -3 -2 -1 ------------- Run | Jun Mat Sub Mat Fac Fac Fac Fac Upp Upp War Pro Res Res Acc Turns Passed 10404 | 74 451 2954 316 620 665 521 191 643 439 1195 308 208 1226 593 Spaces Moved 9022 | 34 202 1831 195 405 416 276 111 457 389 1159 412 316 1880 939 Core 307 | 3 . . . . . . . . 71 233 . . . . Treads 882 | 31 202 649 . . . . . . . . . . . . Legs 3360 | . . 1182 195 405 416 276 111 457 318 . . . . . Wheels . | . . . . . . . . . . . . . . . Hover 4473 | . . . . . . . . . . 926 412 316 1880 939 Flight . | . . . . . . . . . . . . . . . Fastest Speed 39 | 50 160 130 125 123 126 117 117 116 50 44 50 43 40 39 Average Speed 87 | 150 160 140 128 125 126 124 117 116 103 58 50 43 42 41 Slowest Speed 160 | 160 160 160 130 126 126 125 117 117 130 76 50 50 43 44 Overloaded Moves . | . . . . . . . . . . . . . . . Propulsion Burnouts . | . . . . . . . . . . . . . . . Robots Hopped . | . . . . . . . . . . . . . . . Cave-ins Triggered . | . . . . . . . . . . . . . . . Exploration Rate (%) 36 | 4 48 79 23 15 15 12 6 60 60 92 56 11 38 25 Regions Visited 14 Branch Regions 5 Pre-discovered Areas 2 | . . 1 . . . . . 1 . . . . . . Known Exits Taken 4 | . . . 1 1 1 . . . . . . . 1 . Unknown Exits Taken 10 | 1 1 1 . . . 1 1 1 1 1 1 1 . . Scrap Searched 20 | . . 15 . . . . . 3 . . 2 . . . Spaces Dug 68 | . 4 9 . . . . . 13 . 1 12 2 8 19 Terrain Destroyed 544 | . 21 257 . . . . . 73 12 6 107 2 17 49 Melee 26 | . . . . . . . . . . 1 . . 7 18 Projectile 54 | . . 17 . . . . . 1 . 5 25 2 3 1 AOE 464 | . 21 240 . . . . . 72 12 . 82 . 7 30 Terrain Rammed . | . . . . . . . . . . . . . . . Walls Destroyed . | . . . . . . . . . . . . . . . Machines Disabled . | . . . . . . . . . . . . . . . Actions | -11 -10 -10 -8 -7 -6 -5 -4 -4 -4 -4 -3 -3 -2 -1 --------- Run | Jun Mat Sub Mat Fac Fac Fac Fac Upp Upp War Pro Res Res Acc Total 10963 | 48 310 2061 233 504 528 410 156 529 416 1627 474 359 2227 1081 Wait 1082 | 3 70 59 1 67 54 86 33 11 18 341 28 22 210 79 Move 9007 | 33 201 1830 194 404 415 275 110 456 388 1158 411 315 1879 938 Hop . | . . . . . . . . . . . . . . . Pick Up 70 | 2 10 10 3 4 11 5 2 3 . 6 1 . 11 2 Fast Attach 101 | 7 . 5 8 5 6 2 1 1 . 31 1 3 25 6 Attach 22 | . . 1 . 2 2 3 1 1 2 2 2 . 4 2 Detach 9 | . . . . . 1 . . 1 . 1 . . 5 1 Swap 70 | . 9 8 1 3 4 5 . 7 . 11 . 1 18 3 Drop 158 | . 5 21 8 8 13 9 1 5 . 40 2 2 36 8 Fire 334 | 3 15 111 17 9 21 25 8 24 4 36 29 16 14 2 Melee 66 | . . . . . . . . . . 1 . . 25 40 Ram . | . . . . . . . . . . . . . . . Kick 3 | . . . . 2 1 . . . . . . . . . Crush . | . . . . . . . . . . . . . . . Escape Stasis . | . . . . . . . . . . . . . . . Rewire 24 | . . . . . . . . 20 4 . . . . . Trap . | . . . . . . . . . . . . . . . Miscellaneous 17 | . . 16 1 . . . . . . . . . . . Route ------- -11/Junkyard -10/Materials (discovered 2 exits: [*Mat] / *Sub) -10/Subcaves (discovered 2 exits: [*Mat x2]) -8/Materials -7/Factory -6/Factory -5/Factory (discovered 2 exits: [*Fac] / [*Upp]) -4/Factory -4/Upper Caves -4/Upper Caves (discovered 2 exits: *Res / *War) -4/Warlord -3/Proximity Caves -3/Research -2/Research (discovered 4 exits: *Acc x3 / [*Tes]) -1/Access To Epsilon Eridani History --------- Turn | Location | Event 25 | -11/Junkyard | Discovered new exit (range 15) 75 | -11/Junkyard | Entered Materials 328 | -10/Materials | Build established: Mutant 387 | -10/Materials | Discovered new exit (range 15) 497 | -10/Materials | Discovered new exit (range 7) 526 | -10/Materials | Entered Subcaves 531 | -10/Subcaves | Ambushed by Subdwellers from Twisted Machinery 607 | -10/Subcaves | Shifting Twisted Machinery released Sub. Shrapnel Launcher 669 | -10/Subcaves | Shifting Twisted Machinery released Shrapnel Trap 708 | -10/Subcaves | Ambushed by swarm of Subdwellers 717 | -10/Subcaves | Ambushed by Subdwellers from Twisted Machinery 752 | -10/Subcaves | Destroyed 8 combat bots 861 | -10/Subcaves | A swath of the cavern ceiling suddenly collapsed 1013 | -10/Subcaves | Learned location of Zion (-6) 1013 | -10/Subcaves | Met a Zionite searching for "candidates" 1013 | -10/Subcaves | Discovered new exit (range 13) 1034 | -10/Subcaves | Build established: Subdweller-Mutant 1082 | -10/Subcaves | A swath of the cavern ceiling suddenly collapsed 1171 | -10/Subcaves | Shifting Twisted Machinery released Sub. Power Source 1221 | -10/Subcaves | Shifting Twisted Machinery released Hvy. Battle Rifle 1279 | -10/Subcaves | Discovered new exit (range 11) 1711 | -10/Subcaves | Visited 4L-MR0's lab 1731 | -10/Subcaves | Found Cargo Legs 1732 | -10/Subcaves | Attached Cargo Legs, gained temporary slots: Utility x2 2267 | -10/Subcaves | Ambushed by Subdweller buried in earth 2576 | -10/Subcaves | Build established: Mutant 2650 | -10/Subcaves | Core integrity fell below 50% 3480 | -10/Subcaves | Entered Materials 3480 | -8/Materials | Evolved 4 slots: Propulsion x2, Utility x2 3544 | -8/Materials | Garrison activated, responded to threat 3722 | -8/Materials | Met 7R-MNS 3769 | -8/Materials | Discovered new exit (range 16) 3795 | -8/Materials | Identified exit to Factory 3796 | -8/Materials | Entered Factory 3796 | -7/Factory | Evolved 2 slots: Utility x2 3797 | -7/Factory | Caught up to 7R-MNS 3913 | -7/Factory | Build established: Scavenger-Mutant 4399 | -7/Factory | Discovered new exit (range 16) 4414 | -7/Factory | Identified exit to Factory 4416 | -7/Factory | Entered another Factory area 4416 | -6/Factory | Evolved 2 slots: Utility x2 4417 | -6/Factory | Caught up to 7R-MNS 4597 | -6/Factory | Found Powered Armor 5046 | -6/Factory | Discovered new exit (range 7) 5080 | -6/Factory | Identified exit to Factory 5081 | -6/Factory | Entered another Factory area 5081 | -5/Factory | Evolved 2 slots: Power x1, Propulsion x1 5082 | -5/Factory | Caught up to 7R-MNS 5140 | -5/Factory | Discovered new exit (range 16) 5550 | -5/Factory | Discovered new exit (range 15) 5602 | -5/Factory | Entered another Factory area 5602 | -4/Factory | Evolved 2 slots: Utility x2 5603 | -4/Factory | Caught up to 7R-MNS 5768 | -4/Factory | Spotted B-86 Titan 5772 | -4/Factory | Discovered new exit (range 6) 5793 | -4/Factory | 7R-MNS successfully reached the Upper Caves 5793 | -4/Factory | Entered Upper Caves 5855 | -4/Upper Caves | Attracted the attention of an 0b10 checkpoint 6023 | -4/Upper Caves | Attracted the attention of an 0b10 outpost 6133 | -4/Upper Caves | Lost 3 parts (1p1n1u) 6142 | -4/Upper Caves | Destroyed 7 combat bots 6389 | -4/Upper Caves | Learned location of Testing (-2) 6423 | -4/Upper Caves | Discovered new exit (range 10) 6436 | -4/Upper Caves | Entered another Upper Caves area 6436 | -4/Upper Caves | Accompanied by 2 allies 6521 | -4/Upper Caves | Discovered new exit (range 8) 6603 | -4/Upper Caves | Encountered a Warlord checkpoint 6651 | -4/Upper Caves | Learned Research terminal intel 6741 | -4/Upper Caves | Attracted the attention of an 0b10 outpost 6832 | -4/Upper Caves | Released all parts (5) 6862 | -4/Upper Caves | Lost 12 parts (1p4n4u3w) 6867 | -4/Upper Caves | Discovered new exit (range 8) 6875 | -4/Upper Caves | Entered Warlord 6995 | -4/Warlord | Found Prototype Device 6995 | -4/Warlord | Identified Wardrone Bay 7158 | -4/Warlord | Visited the Vortex Lab 7164 | -4/Warlord | Found Prototype Piercing Weapon 7164 | -4/Warlord | Identified Vortex Lance 7171 | -4/Warlord | Found Prototype Launcher 7177 | -4/Warlord | Warlord's base attacked by MAIN.C 7281 | -4/Warlord | Met Warlord 7308 | -4/Warlord | Found Prototype Processor 7308 | -4/Warlord | Identified Spectral Analyzer 7310 | -4/Warlord | Found Prototype Hackware 7310 | -4/Warlord | Identified Ghost Barrier 7317 | -4/Warlord | Found Prototype Reactor 7326 | -4/Warlord | Found Thermal Barrier 7527 | -4/Warlord | Warlord forces counterattacked 7540 | -4/Warlord | Spotted B-90 Cyclops 7581 | -4/Warlord | P-80 Master assimilated allied JK-7AV(g) 7589 | -4/Warlord | Spotted Executioner 7788 | -4/Warlord | Spotted Executioner 7852 | -4/Warlord | Warlord base infiltrated, sounded retreat 7853 | -4/Warlord | Enhanced Grunt warped into view 7853 | -4/Warlord | Enhanced Grunt warped into view 7853 | -4/Warlord | Enhanced Grunt warped into view 7853 | -4/Warlord | Enhanced Demolisher warped into view 7853 | -4/Warlord | Enhanced Demolisher warped into view 7853 | -4/Warlord | Enhanced Demolisher warped into view 7857 | -4/Warlord | Spotted Striker 7887 | -4/Warlord | Spotted Executioner 7899 | -4/Warlord | Spotted B-90 Cyclops 7905 | -4/Warlord | Spotted B-86 Titan 7905 | -4/Warlord | Spotted I0-VW7(g) 7908 | -4/Warlord | Spotted Striker 7971 | -4/Warlord | Found Prototype Launcher 8033 | -4/Warlord | Identified Chain Missile Launcher 8055 | -4/Warlord | Discovered new exit (range 8) 8070 | -4/Warlord | Entered Proximity Caves 8373 | -3/Proximity Caves | Discovered new exit (range 10) 8378 | -3/Proximity Caves | Entered Research 8378 | -3/Research | Evolved 2 slots: Propulsion x1, Utility x1 8379 | -3/Research | Loaded intel: 22 terminal locations 8523 | -3/Research | Discovered new exit (range 22) 8586 | -3/Research | Entered another Research area 8586 | -2/Research | Warlord forces began assault on 0b10 8586 | -2/Research | Evolved 2 slots: Utility x1, Weapon x1 8595 | -2/Research | Identified exit to Access 8624 | -2/Research | Spotted B-90 Cyclops 8696 | -2/Research | Research machine network offline 8785 | -2/Research | Identified Vortex Chain Reactor 8909 | -2/Research | Met up with Warlord 8957 | -2/Research | Spotted Striker 8969 | -2/Research | Spotted Striker 9103 | -2/Research | Borebot progress halted 9156 | -2/Research | Borebot progress halted 9159 | -2/Research | Spotted Striker 9159 | -2/Research | Spotted Striker 9163 | -2/Research | Spotted Striker 9165 | -2/Research | Spotted Striker 9168 | -2/Research | Destroyed Striker 9176 | -2/Research | Borebot progress halted 9233 | -2/Research | Found Prototype Processor 9233 | -2/Research | Identified Exp. Core Analyzer 9355 | -2/Research | Build established: Scavenger-Scout 9390 | -2/Research | Discovered new exit (range 23) 9412 | -2/Research | Spotted Striker 9412 | -2/Research | Spotted Executioner 9433 | -2/Research | Spotted Striker 9447 | -2/Research | Destroyed Striker 9475 | -2/Research | Spotted Striker 9480 | -2/Research | Spotted Executioner 9525 | -2/Research | Found Exp. Core Analyzer 9537 | -2/Research | Found Prototype Processor 9537 | -2/Research | Identified Exp. Targeting Computer 9590 | -2/Research | Warlord invited to help at Command 9629 | -2/Research | Spotted Striker 9630 | -2/Research | Spotted Striker 9812 | -2/Research | Entered Access 9812 | -1/Access | Evolved 2 slots: Propulsion x1, Utility x1 9925 | -1/Access | Spotted B-99 Colossus 9962 | -1/Access | Identified exit to Surface 10256 | -1/Access | Spotted B-99 Colossus 10341 | -1/Access | Energy Cycler disabled 10369 | -1/Access | Found Prototype Hackware 10369 | -1/Access | Identified Exp. Hacking Suite 10405 | *** | Escaped! Last Messages --------------- 10391_ Terminal disabled. 10392_ K-01 Serf collects debris. 10393_ H-81 Overseer calls for reinforcements. 10393_ ALERT: Hostile activity reported, dispatching reinforcements to area. 10393_ Knocked back. 10394_ Plasma Lance follow-up attack on H-81 Overseer. 10394_ Knocked back. 10396_ K-01 Serf collects debris. 10396_ Knocked back. 10398_ R-10 Processor collects Lgt. Ion Engine. 10398_ Cld. Antigrav System destroyed. 10398_ Lrn. Sensor Array destroyed. 10398_ Critical hit (Blast). 10398_ Knocked back. 10401_ K-01 Serf collects debris. 10402_ R-10 Processor collects Wheel. 10403_ The Access Shell folds into the floor. 10403_ Sealed Heavy Doors breached. 10404_ K-01 Serf collects debris. Map ----- +----------------------------------------------------+ | ?????????????????????????????????????????????????? | | ?????????????????????????????????????????????????? | | ????????????????????????????????????????########?? | | ????????????????????????????????????????########?? | | ????????????????????????????????????????## ?? | | ????????????????????????????????????????## ?? | | ?????????????????????????????????????##### ? | | ?????????????????????????????????????##### | | ????????????????????????????????????? # | | ?????????????????????????????????????? # | | ?????????????????????????????????????? ???? | | ????????????????????????????????????# #????? | | ????????????????????????????????????## ##??????? | | ????????????????????????????????????## ##???????? | | ????????????????????????????????????## ##???????? | | ????????????????????????????????????## ##???????? | | ????????????????????????????????????## ##???????? | | ????????????????????????????????????## ##???????? | | ????????????????????????????#####???## ##???????? | | ??????????############################ ##???????? | | ??????????#################### ####### ##???????? | | ?????????? """ ##???????? | | ? ## ????" ##???????? | | ######+### ?????" R##???????? | | ### ???????" H ##???????? | | # ????????" "@ ##???????? | | # ??????????" "" ##???????? | | # ???????????" % % ##???????? | | # ##???????????" k ##???????? | | # ##???????????" """ "" R##???????? | | # ##??????????"" """T""" %##???????? | | + ##??????????########### #######%%##???????? | | # ##??????????################### ##???????? | | ### ##???????????????????#####??### ##???????? | | ##??????????????????????????### ##???????? | | ##??????????????????????????##" ##???????? | | #########???????????????????### ##???????? | | ! #########???????????????????### ##???????? | | |% ##???????????????????### ## ??????? | | ##????? ##### ## | | ##?????#####+########## ###+##### | | ######### ! ! | | ###+############ =%* | | ## !!# # # ############ ######### | | # *=%# # # ############# ########## | | + [!+ #[[ # # #### ###????### | | # =# #[ * + + #### ##?????## | | # # +[ ! # # #### ##?????## | | # # # = # # #### ##?????## | | # # # # # #### ?????## | +----------------------------------------------------+ Best States ------------- Heat Dissipation 139 Energy Generation 55 Energy Capacity 1200 Matter Stores 300 Matter Capacity 300 Sight Range 24 Robot Scan Range 18 Terrain Scan Range 20 Terrain Scan Density 85 Power Amplification 20 Armor Coverage 1375 Resistance: TH 50 Propulsion Shielding 33 Evasion (%) 71 Targeting Accuracy 8 Melee Accuracy 24 Target Analysis 8 Core Analysis 8 Recoil Reduction 2 Salvage Targeting 12 Offensive Hacking 30 Defensive Hacking 20 Item Schematics ----------------- None Robot Schematics ------------------ None Fabricated ------------ Nothing Alien Tech Used ----------------- None Achievements -------------- None Challenges ------------ None Game ------ Seed AbsorptionNovaBarrier Manual? 0 Play Time 01:54:47 Cumulative 1256.7 hours Start 2023.11.30 @ 00:16:45 End 2023.11.30 @ 15:44:46 Sessions 3 Manual Loads 0 Difficulty Rogue Special Mode None Game No. 912 Rogue 872 Adventurer 40 Explorer 0 Win Type 0 Total 147 Types 72/7/43/2/1/4/15/2/1 Lore% 92 Gallery% 95 Achievement% 82 Wizard Run 0 Options --------- ASCII 0 Keyboard 0 Movement Numpad Keybinds 0 Fullscreen 0 Font 20/Terminus Map View 76x50 Tactical HUD 1 Map Filters NONE Filters NONE Steam 1 RUN: 052bcebc-4b93-4ff6-86a9-845ea74e4189